fUSD/lending_fUSD_20250125
["ID","MTS","AMOUNT","RATE_DAILY","PERIOD"]
[350294330,1737773452844,-500.0,0.00017808,2]
[350294331,1737773452854,-640.66490279,0.00017808,2]
[350294332,1737773452863,-866.74,0.00017808,2]
[350294333,1737773452873,-1168.46,0.00017808,2]
[350294334,1737773452883,-1521.17,0.00017808,2]
[350294335,1737773452892,-1565.06,0.00017808,2]
[350294336,1737773452902,-1243.83,0.00017808,2]
[350294337,1737773452911,-500.0,0.00017808,2]
[350294338,1737773452921,-500.0,0.00017808,2]
[350294339,1737773452930,-500.0,0.00017808,2]
[350294340,1737773452940,-1449.43,0.00017808,2]
[350294341,1737773452949,-809.88,0.00017808,2]
[350294342,1737773452959,-718.32,0.00017808,2]
[350294343,1737773452968,-500.0,0.00017808,2]
[350294344,1737773452978,-500.0,0.00017808,2]
[350294345,1737773452987,-1026.27,0.00017808,2]
[350294346,1737773452997,-578.48,0.00017808,2]
[350294347,1737773453007,-2228.61,0.00017808,2]
[350294348,1737773453016,-500.0,0.00017808,2]
[350294349,1737773453025,-500.0,0.00017808,2]
[350294350,1737773453035,-500.0,0.00017808,2]
[350294351,1737773453045,-500.0,0.00017808,2]
[350294352,1737773453055,-500.0,0.00017808,2]
[350294353,1737773453064,-774.44,0.00017808,2]
[350294354,1737773453074,-844.44,0.00017808,2]
[350294355,1737773453085,-700.66,0.00017808,2]
[350294356,1737773453210,-665.16,0.00017808,2]
[350294357,1737773453219,-500.0,0.00017808,2]
[350294358,1737773453230,-1163.07,0.00017808,2]
[350294359,1737773453240,-500.0,0.00017808,2]
[350294360,1737773453250,-500.0,0.00017808,2]
[350294361,1737773453259,-552.57,0.00017808,2]
[350294362,1737773453269,-500.0,0.00017808,2]
[350294363,1737773453279,-3203.93,0.00017808,2]
[350294364,1737773453289,-714.55,0.00017808,2]
[350294365,1737773453299,-500.0,0.00017808,2]
[350294366,1737773453308,-1003.08,0.00017808,2]
[350294367,1737773453317,-851.63,0.00017808,2]
[350294368,1737773453327,-679.18,0.00017808,2]
[350294369,1737773453336,-701.17,0.00017808,2]
[350294370,1737773453345,-500.0,0.00017945,2]
[350294371,1737773453354,-495.93529832,0.00017945,2]
[350294372,1737773453363,-185.99537518,0.00017945,2]
[350294373,1737773453372,-500.0,0.00017945,2]
[350294374,1737773453382,-500.0,0.00017945,2]
[350294375,1737773453392,-866.74,0.00017945,2]
[350294376,1737773453402,-1168.46,0.00017945,2]
[350294377,1737773453412,-1521.17,0.00017945,2]
[350294378,1737773453421,-1565.06,0.00017945,2]
[350294379,1737773453430,-1243.83,0.00017945,2]
[350294380,1737773453440,-500.0,0.00017945,2]
[350294381,1737773453449,-500.0,0.00017945,2]
[350294382,1737773453459,-500.0,0.00017945,2]
[350294383,1737773453468,-1449.43,0.00017945,2]
[350294384,1737773453478,-809.88,0.00017945,2]
[350294385,1737773453487,-718.32,0.00017945,2]
[350294386,1737773453498,-500.0,0.00017945,2]
[350294387,1737773453508,-500.0,0.00017945,2]
[350294388,1737773453519,-1026.27,0.00017945,2]
[350294389,1737773453529,-578.48,0.00017945,2]
[350294390,1737773453539,-2228.61,0.00017945,2]
[350294391,1737773453549,-500.0,0.00017945,2]
[350294392,1737773453559,-500.0,0.00017945,2]
[350294393,1737773453568,-500.0,0.00017945,2]
[350294394,1737773453579,-500.0,0.00017945,2]
[350294395,1737773453589,-500.0,0.00017945,2]
[350294396,1737773453599,-774.44,0.00017945,2]
[350294397,1737773453609,-844.44,0.00017945,2]
[350294398,1737773453619,-700.66,0.00017945,2]
[350294399,1737773453628,-665.16,0.00017945,2]
[350294400,1737773453639,-500.0,0.00017945,2]
[350294401,1737773453648,-1163.07,0.00017945,2]
[350294402,1737773453658,-500.0,0.00017945,2]
[350294403,1737773453667,-500.0,0.00017945,2]
[350294404,1737773453676,-552.57,0.00017945,2]
[350294405,1737773453686,-500.0,0.00017945,2]
[350294406,1737773453696,-3203.93,0.00017945,2]
[350294407,1737773453706,-714.55,0.00017945,2]
[350294408,1737773453716,-500.0,0.00017945,2]
[350294409,1737773453725,-1003.08,0.00017945,2]
[350294410,1737773453735,-851.63,0.00017945,2]
[350294411,1737773453744,-679.18,0.00017945,2]
[350294412,1737773453754,-701.17,0.00017945,2]
[350294413,1737773453763,-366.42606913,0.0001795,2]
[350294414,1737773453772,-416.7771028,0.00017969,2]
[350294415,1737773453781,-500.0,0.00018082,2]
[350294416,1737773453791,-197.3049749,0.00018082,2]
[350294417,1737773453800,-500.0,0.00018082,2]
[350294418,1737773453810,-866.74,0.00018082,2]
[350294419,1737773453820,-1168.46,0.00018082,2]
[350294420,1737773453831,-1521.17,0.00018082,2]
[350294421,1737773453840,-1565.06,0.00018082,2]
[350294422,1737773453850,-1243.83,0.00018082,2]
[350294423,1737773453859,-500.0,0.00018082,2]
[350294424,1737773453869,-500.0,0.00018082,2]
[350294425,1737773453878,-500.0,0.00018082,2]
[350294426,1737773453888,-1449.43,0.00018082,2]
[350294427,1737773453898,-809.88,0.00018082,2]
[350294428,1737773453907,-718.32,0.00018082,2]
[350294429,1737773453916,-500.0,0.00018082,2]
[350294430,1737773453927,-500.0,0.00018082,2]
[350294431,1737773453936,-1026.27,0.00018082,2]
[350294432,1737773453946,-578.48,0.00018082,2]
[350294433,1737773453956,-2228.61,0.00018082,2]
[350294434,1737773453965,-546.05347188,0.00018082,2]
[350294435,1737773453975,-500.0,0.00018082,2]
[350294436,1737773453985,-462.37361287,0.00018082,2]
[350294437,1737773453994,-500.0,0.00018082,2]
[350294438,1737773454004,-500.0,0.00018082,2]
[350294439,1737773454014,-774.44,0.00018082,2]
[350294440,1737773454024,-844.44,0.00018082,2]
[350294441,1737773454035,-700.66,0.00018082,2]
[350294442,1737773454045,-665.16,0.00018082,2]
[350294443,1737773454054,-500.0,0.00018082,2]
[350294444,1737773454064,-1163.07,0.00018082,2]
[350294445,1737773454075,-500.0,0.00018082,2]
[350294446,1737773454085,-500.0,0.00018082,2]
[350294447,1737773454095,-552.57,0.00018082,2]
[350294448,1737773454105,-500.0,0.00018082,2]
[350294449,1737773454115,-3203.93,0.00018082,2]
[350294450,1737773454124,-714.55,0.00018082,2]
[350294451,1737773454133,-500.0,0.00018082,2]
[350294452,1737773454143,-1003.08,0.00018082,2]
[350294453,1737773454153,-851.63,0.00018082,2]
[350294454,1737773454164,-679.18,0.00018082,2]
[350294455,1737773454173,-701.17,0.00018082,2]
[350294456,1737773454182,-1130.585,0.00018095,2]
[350294457,1737773454192,-500.0,0.00018164,2]
[350294458,1737773454202,-500.0,0.00018164,2]
[350294459,1737773454212,-416.7771028,0.00018176,2]
[350294460,1737773454222,-24975.95891181,0.00018192,2]
[350294461,1737773454231,-550.8399456,0.00018219,2]
[350294462,1737773454242,-500.0,0.00018219,2]
[350294463,1737773454253,-866.74,0.00018219,2]
[350294464,1737773454263,-1168.46,0.00018219,2]
[350294465,1737773454272,-1521.17,0.00018219,2]
[350294466,1737773454282,-1565.06,0.00018219,2]
[350294467,1737773454291,-1243.83,0.00018219,2]
[350294468,1737773454300,-500.0,0.00018219,2]
[350294469,1737773454310,-422.43372556,0.00018219,2]
[350294470,1737773454319,-500.0,0.00018219,2]
[350294471,1737773454329,-1449.43,0.00018219,2]
[350294472,1737773454338,-809.88,0.00018219,2]
[350294473,1737773454347,-718.32,0.00018219,2]
[350294474,1737773454357,-500.0,0.00018219,2]
[350294475,1737773454367,-500.0,0.00018219,2]
[350294476,1737773454377,-1026.27,0.00018219,2]
[350294477,1737773454386,-578.48,0.00018219,2]
[350294478,1737773454396,-2228.61,0.00018219,2]
[350294479,1737773454406,-500.0,0.00018219,2]
[350294480,1737773454415,-500.0,0.00018219,2]
[350294481,1737773454425,-500.0,0.00018219,2]
[350294482,1737773454435,-774.44,0.00018219,2]
[350294483,1737773454444,-844.44,0.00018219,2]
[350294484,1737773454454,-700.66,0.00018219,2]
[350294485,1737773454463,-665.16,0.00018219,2]
[350294486,1737773454473,-500.0,0.00018219,2]
[350294487,1737773454483,-1163.07,0.00018219,2]
[350294488,1737773454492,-500.0,0.00018219,2]
[350294489,1737773454501,-500.0,0.00018219,2]
[350294490,1737773454511,-552.57,0.00018219,2]
[350294491,1737773454520,-396.35792834,0.00018219,2]
[350294492,1737773454530,-3203.93,0.00018219,2]
[350294493,1737773454539,-714.55,0.00018219,2]
[350294494,1737773454549,-500.0,0.00018219,2]
[350294495,1737773454558,-1003.08,0.00018219,2]
[350294496,1737773454567,-851.63,0.00018219,2]
[350294497,1737773454577,-679.18,0.00018219,2]
[350294498,1737773454587,-500.0,0.00018356,2]
[350294499,1737773454596,-866.74,0.00018356,2]
[350294500,1737773454606,-1168.46,0.00018356,2]
[350294501,1737773454615,-1521.17,0.00018356,2]
[350294502,1737773454625,-1565.06,0.00018356,2]
[350294503,1737773454634,-1243.83,0.00018356,2]
[350294504,1737773454645,-500.0,0.00018356,2]
[350294505,1737773454655,-500.0,0.00018356,2]
[350294506,1737773454665,-1449.43,0.00018356,2]
[350294507,1737773454674,-809.88,0.00018356,2]
[350294508,1737773454683,-718.32,0.00018356,2]
[350294509,1737773454693,-621.1569748,0.00018356,2]
[350294510,1737773454702,-500.0,0.00018356,2]
[350294511,1737773454711,-1026.27,0.00018356,2]
[350294512,1737773454720,-578.48,0.00018356,2]
[350294513,1737773454729,-2228.61,0.00018356,2]
[350294514,1737773454738,-534.78450004,0.00018356,2]
[350294515,1737773454748,-557.59468824,0.00018356,2]
[350294516,1737773454757,-517.35,0.00018356,2]
[350294517,1737773454766,-774.44,0.00018356,2]
[350294518,1737773454776,-844.44,0.00018356,2]
[350294519,1737773454785,-700.66,0.00018356,2]
[350294520,1737773454795,-665.16,0.00018356,2]
[350294521,1737773454804,-500.0,0.00018356,2]
[350294522,1737773454813,-1163.07,0.00018356,2]
[350294523,1737773454823,-500.0,0.00018356,2]
[350294524,1737773454832,-500.0,0.00018356,2]
[350294525,1737773454842,-552.57,0.00018356,2]
[350294526,1737773454851,-3203.93,0.00018356,2]
[350294527,1737773454860,-714.55,0.00018356,2]
[350294528,1737773454870,-500.0,0.00018356,2]
[350294529,1737773454879,-1003.08,0.00018356,2]
[350294530,1737773454889,-851.63,0.00018356,2]
[350294531,1737773454898,-679.18,0.00018356,2]
[350294532,1737773454907,-416.7771028,0.00018383,2]
[350294533,1737773454917,-500.0,0.00018493,2]
[350294534,1737773454926,-866.74,0.00018493,2]
[350294535,1737773454936,-1168.46,0.00018493,2]
[350294536,1737773454945,-1521.17,0.00018493,2]
[350294537,1737773454955,-1565.06,0.00018493,2]
[350294538,1737773454964,-1243.83,0.00018493,2]
[350294539,1737773454974,-500.0,0.00018493,2]
[350294540,1737773454983,-415.04862405,0.00018493,2]
[350294541,1737773454992,-1449.43,0.00018493,2]
[350294542,1737773455002,-809.88,0.00018493,2]
[350294543,1737773455011,-718.32,0.00018493,2]
[350294544,1737773455021,-435.18770238,0.00018493,2]
[350294545,1737773455031,-1026.27,0.00018493,2]
[350294546,1737773455040,-578.48,0.00018493,2]
[350294547,1737773455049,-2228.61,0.00018493,2]
[350294548,1737773455058,-774.44,0.00018493,2]
[350294549,1737773455067,-844.44,0.00018493,2]
[350294550,1737773455077,-700.66,0.00018493,2]
[350294551,1737773455087,-665.16,0.00018493,2]
[350294552,1737773455097,-500.0,0.00018493,2]
[350294553,1737773455107,-1163.07,0.00018493,2]
[350294554,1737773455116,-500.0,0.00018493,2]
[350294555,1737773455126,-500.0,0.00018493,2]
[350294556,1737773455136,-552.57,0.00018493,2]
[350294557,1737773455146,-3203.93,0.00018493,2]
[350294558,1737773455157,-714.55,0.00018493,2]
[350294559,1737773455168,-500.0,0.00018493,2]
[350294560,1737773455178,-1003.08,0.00018493,2]
[350294561,1737773455188,-851.63,0.00018493,2]
[350294562,1737773455198,-679.18,0.00018493,2]
[350294563,1737773455208,-232.82975548,0.00018529,2]
[350294564,1737773455218,-416.7771028,0.0001859,2]
[350294565,1737773455227,-500.0,0.0001863,2]
[350294566,1737773455240,-866.74,0.0001863,2]
[350294567,1737773455250,-1168.46,0.0001863,2]
[350294568,1737773455259,-1521.17,0.0001863,2]
[350294569,1737773455270,-1565.06,0.0001863,2]
[350294570,1737773455280,-1243.83,0.0001863,2]
[350294571,1737773455290,-500.0,0.0001863,2]
[350294572,1737773455299,-1449.43,0.0001863,2]
[350294573,1737773455310,-809.88,0.0001863,2]
[350294574,1737773455319,-718.32,0.0001863,2]
[350294575,1737773455329,-1026.27,0.0001863,2]
[350294576,1737773455338,-578.48,0.0001863,2]
[350294577,1737773455347,-2228.61,0.0001863,2]
[350294578,1737773455357,-774.44,0.0001863,2]
[350294579,1737773455366,-844.44,0.0001863,2]
[350294580,1737773455376,-700.66,0.0001863,2]
[350294581,1737773455385,-665.16,0.0001863,2]
[350294582,1737773455395,-500.0,0.0001863,2]
[350294583,1737773455405,-1163.07,0.0001863,2]
[350294584,1737773455414,-388.80615174,0.0001863,2]
[350294585,1737773455424,-500.0,0.0001863,2]
[350294586,1737773455433,-552.57,0.0001863,2]
[350294587,1737773455443,-3203.93,0.0001863,2]
[350294588,1737773455453,-714.55,0.0001863,2]
[350294589,1737773455462,-151.89101716,0.0001863,2]
[350294590,1737773455472,-1003.08,0.0001863,2]
[350294591,1737773455483,-851.63,0.0001863,2]
[350294592,1737773455492,-679.18,0.0001863,2]
[350294593,1737773455502,-366.42606913,0.0001874,2]
[350294594,1737773455512,-527.56167388,0.00018766,2]
[350294595,1737773455521,-500.0,0.00018767,2]
[350294596,1737773455531,-866.74,0.00018767,2]
[350294597,1737773455541,-1168.46,0.00018767,2]
[350294598,1737773455552,-1521.17,0.00018767,2]
[350294599,1737773455562,-1565.06,0.00018767,2]
[350294600,1737773455572,-1243.83,0.00018767,2]
[350294601,1737773455582,-168.19750102,0.00018767,2]
[350294602,1737773455695,-1449.43,0.00018767,2]
[350294603,1737773455706,-809.88,0.00018767,2]
[350294604,1737773455717,-718.32,0.00018767,2]
[350294605,1737773455727,-1026.27,0.00018767,2]
[350294606,1737773455737,-578.48,0.00018767,2]
[350294607,1737773455748,-2228.61,0.00018767,2]
[350294608,1737773455758,-774.44,0.00018767,2]
[350294609,1737773455767,-844.44,0.00018767,2]
[350294610,1737773455779,-700.66,0.00018767,2]
[350294611,1737773455789,-665.16,0.00018767,2]
[350294612,1737773455798,-500.0,0.00018767,2]
[350294613,1737773455809,-1163.07,0.00018767,2]
[350294614,1737773455818,-500.0,0.00018767,2]
[350294615,1737773455828,-552.57,0.00018767,2]
[350294616,1737773455838,-3203.93,0.00018767,2]
[350294617,1737773455848,-714.55,0.00018767,2]
[350294618,1737773455858,-1003.08,0.00018767,2]
[350294619,1737773455869,-851.63,0.00018767,2]
[350294620,1737773455880,-679.18,0.00018767,2]
[350294621,1737773455891,-416.7771028,0.00018797,2]
[350294622,1737773455901,-24975.95891181,0.0001881,2]
[350294623,1737773455912,-214.99498812,0.00018847,2]
[350294624,1737773455922,-178.28260942,0.00018904,2]
[350294625,1737773455932,-866.74,0.00018904,2]
[350294626,1737773455943,-1168.46,0.00018904,2]
[350294627,1737773455954,-1521.17,0.00018904,2]
[350294628,1737773455964,-1565.06,0.00018904,2]
[350294629,1737773455974,-1243.83,0.00018904,2]
[350294630,1737773455984,-1449.43,0.00018904,2]
[350294631,1737773455994,-809.88,0.00018904,2]
[350294632,1737773456003,-718.32,0.00018904,2]
[350294633,1737773456014,-1026.27,0.00018904,2]
[350294634,1737773456023,-578.48,0.00018904,2]
[350294635,1737773456033,-2228.61,0.00018904,2]
[350294636,1737773456043,-774.44,0.00018904,2]
[350294637,1737773456052,-844.44,0.00018904,2]
[350294638,1737773456062,-700.66,0.00018904,2]
[350294639,1737773456072,-665.16,0.00018904,2]
[350294640,1737773456082,-500.0,0.00018904,2]
[350294641,1737773456092,-1163.07,0.00018904,2]
[350294642,1737773456102,-610.32107086,0.00018904,2]
[350294643,1737773456111,-552.57,0.00018904,2]
[350294644,1737773456122,-3203.93,0.00018904,2]
[350294645,1737773456132,-714.55,0.00018904,2]
[350294646,1737773456142,-1003.08,0.00018904,2]
[350294647,1737773456152,-851.63,0.00018904,2]
[350294648,1737773456166,-679.18,0.00018904,2]
[350294649,1737773456177,-1000.0,0.00018966,2]
[350294650,1737773456190,-500.0,0.00018986,2]
[350294651,1737773456200,-416.7771028,0.00019003,2]
[350294652,1737773456210,-866.74,0.00019041,2]
[350294653,1737773456219,-1168.46,0.00019041,2]
[350294654,1737773456229,-1521.17,0.00019041,2]
[350294655,1737773456241,-1565.06,0.00019041,2]
[350294656,1737773456253,-1243.83,0.00019041,2]
[350294657,1737773456264,-1449.43,0.00019041,2]
[350294658,1737773456276,-809.88,0.00019041,2]
[350294659,1737773456286,-718.32,0.00019041,2]
[350294660,1737773456295,-1026.27,0.00019041,2]
[350294661,1737773456305,-578.48,0.00019041,2]
[350294662,1737773456315,-2228.61,0.00019041,2]
[350294663,1737773456325,-774.44,0.00019041,2]
[350294664,1737773456334,-844.44,0.00019041,2]
[350294665,1737773456344,-700.66,0.00019041,2]
[350294666,1737773456354,-665.16,0.00019041,2]
[350294667,1737773456364,-208.16691425,0.00019041,2]
[350294668,1737773456374,-1163.07,0.00019041,2]
[350294669,1737773456383,-552.57,0.00019041,2]
[350294670,1737773456393,-3203.93,0.00019041,2]
[350294671,1737773456403,-714.55,0.00019041,2]
[350294672,1737773456412,-1003.08,0.00019041,2]
[350294673,1737773456422,-851.63,0.00019041,2]
[350294674,1737773456431,-679.18,0.00019041,2]
[350294675,1737773456441,-1215.96,0.00019073,2]
[350294676,1737773456451,-866.74,0.00019178,2]
[350294677,1737773456462,-1168.46,0.00019178,2]
[350294678,1737773456471,-1521.17,0.00019178,2]
[350294679,1737773456482,-1565.06,0.00019178,2]
[350294680,1737773456492,-1243.83,0.00019178,2]
[350294681,1737773456502,-1449.43,0.00019178,2]
[350294682,1737773456512,-809.88,0.00019178,2]
[350294683,1737773456522,-718.32,0.00019178,2]
[350294684,1737773456532,-1026.27,0.00019178,2]
[350294685,1737773456542,-578.48,0.00019178,2]
[350294686,1737773456551,-2228.61,0.00019178,2]
[350294687,1737773456561,-774.44,0.00019178,2]
[350294688,1737773456570,-844.44,0.00019178,2]
[350294689,1737773456580,-700.66,0.00019178,2]
[350294690,1737773456590,-665.16,0.00019178,2]
[350294691,1737773456599,-1163.07,0.00019178,2]
[350294692,1737773456609,-552.57,0.00019178,2]
[350294693,1737773456618,-3203.93,0.00019178,2]
[350294694,1737773456628,-714.55,0.00019178,2]
[350294695,1737773456638,-1003.08,0.00019178,2]
[350294696,1737773456648,-851.63,0.00019178,2]
[350294697,1737773456658,-679.18,0.00019178,2]
[350294698,1737773456667,-767.31,0.0001921,2]
[350294699,1737773456678,-416.7771028,0.0001921,2]
[350294700,1737773456687,-866.74,0.00019315,2]
[350294701,1737773456698,-1168.46,0.00019315,2]
[350294702,1737773456708,-1521.17,0.00019315,2]
[350294703,1737773456718,-1565.06,0.00019315,2]
[350294704,1737773456727,-1243.83,0.00019315,2]
[350294705,1737773456737,-1449.43,0.00019315,2]
[350294706,1737773456747,-809.88,0.00019315,2]
[350294707,1737773456756,-718.32,0.00019315,2]
[350294708,1737773456767,-1026.27,0.00019315,2]
[350294709,1737773456776,-578.48,0.00019315,2]
[350294710,1737773456787,-2228.61,0.00019315,2]
[350294711,1737773456796,-774.44,0.00019315,2]
[350294712,1737773456806,-844.44,0.00019315,2]
[350294713,1737773456816,-700.66,0.00019315,2]
[350294714,1737773456826,-665.16,0.00019315,2]
[350294715,1737773456836,-1163.07,0.00019315,2]
[350294716,1737773456846,-552.57,0.00019315,2]
[350294717,1737773456856,-3203.93,0.00019315,2]
[350294718,1737773456866,-714.55,0.00019315,2]
[350294719,1737773456876,-1003.08,0.00019315,2]
[350294720,1737773456885,-851.63,0.00019315,2]
[350294721,1737773456895,-679.18,0.00019315,2]
[350294722,1737773456905,-232.82975545,0.00019372,2]
[350294723,1737773456915,-200.0,0.00019408,2]
[350294724,1737773456924,-416.7771028,0.00019417,2]
[350294725,1737773456933,-24975.95891181,0.00019428,2]
[350294726,1737773456943,-200.0,0.00019434,2]
[350294727,1737773456952,-866.74,0.00019452,2]
[350294728,1737773456962,-1168.46,0.00019452,2]
[350294729,1737773456972,-1521.17,0.00019452,2]
[350294730,1737773456982,-1565.06,0.00019452,2]
[350294731,1737773456992,-1243.83,0.00019452,2]
[350294732,1737773457002,-1449.43,0.00019452,2]
[350294733,1737773457012,-809.88,0.00019452,2]
[350294734,1737773457023,-718.32,0.00019452,2]
[350294735,1737773457032,-1026.27,0.00019452,2]
[350294736,1737773457042,-578.48,0.00019452,2]
[350294737,1737773457051,-2228.61,0.00019452,2]
[350294738,1737773457063,-774.44,0.00019452,2]
[350294739,1737773457076,-844.44,0.00019452,2]
[350294740,1737773457086,-700.66,0.00019452,2]
[350294741,1737773457096,-665.16,0.00019452,2]
[350294742,1737773457105,-1163.07,0.00019452,2]
[350294743,1737773457115,-552.57,0.00019452,2]
[350294744,1737773457125,-3203.93,0.00019452,2]
[350294745,1737773457135,-714.55,0.00019452,2]
[350294746,1737773457146,-1003.08,0.00019452,2]
[350294747,1737773457156,-851.63,0.00019452,2]
[350294748,1737773457170,-679.18,0.00019452,2]
[350294749,1737773457179,-200.0,0.00019456,2]
[350294750,1737773457189,-366.42606913,0.0001953,2]
[350294751,1737773457199,-866.90165048,0.00019589,2]
[350294752,1737773457209,-1168.57422505,0.00019589,2]
[350294753,1737773457220,-1521.29924517,0.00019589,2]
[350294754,1737773457232,-1565.27260725,0.00019589,2]
[350294755,1737773457244,-1243.88500566,0.00019589,2]
[350294756,1737773457253,-1449.60273013,0.00019589,2]
[350294757,1737773457263,-809.95191651,0.00019589,2]
[350294758,1737773457272,-718.32359677,0.00019589,2]
[350294759,1737773457282,-1026.35893679,0.00019589,2]
[350294760,1737773457291,-578.63863308,0.00019589,2]
[350294761,1737773457300,-2228.83018866,0.00019589,2]
[350294762,1737773457309,-774.46554696,0.00019589,2]
[350294763,1737773457319,-844.60967918,0.00019589,2]
[350294764,1737773457329,-700.84963375,0.00019589,2]
[350294765,1737773457339,-665.28192918,0.00019589,2]
[350294766,1737773457349,-1163.27091225,0.00019589,2]
[350294767,1737773457359,-552.74525414,0.00019589,2]
[350294768,1737773457369,-3204.09081177,0.00019589,2]
[350294769,1737773457379,-714.76457831,0.00019589,2]
[350294770,1737773457388,-1003.17300249,0.00019589,2]
[350294771,1737773457398,-851.80718188,0.00019589,2]
[350294772,1737773457407,-679.39,0.00019589,2]
[350294773,1737773457418,-416.7771028,0.00019624,2]
[350294774,1737773457427,-416.7771028,0.00019831,2]
[350294775,1737773457436,-150.0,0.00019836,4]
[350294776,1737773457446,-150.0,0.00019836,4]
[350294777,1737773457455,-150.0,0.00019836,4]
[350294778,1737773457464,-150.0,0.00019836,4]
[350294779,1737773457473,-613.99,0.000199,2]
[350294780,1737773457482,-150.0,0.00019903,4]
[350294781,1737773457491,-150.0,0.00019971,4]
[350294782,1737773457500,-150.0,0.00019971,4]
[350294783,1737773457509,-2110.0,0.00020005,2]
[350294784,1737773457519,-416.7771028,0.00020038,2]
[350294785,1737773457529,-150.0,0.00020039,4]
[350294786,1737773457539,-24975.95891181,0.00020046,2]
[350294787,1737773457549,-150.0,0.00020106,4]
[350294788,1737773457559,-150.0,0.00020106,4]
[350294789,1737773457568,-150.0,0.00020106,4]
[350294790,1737773457578,-150.0,0.00020174,4]
[350294791,1737773457587,-232.82975545,0.00020215,2]
[350294792,1737773457596,-1374.97,0.00020217,2]
[350294793,1737773457606,-150.0,0.00020241,4]
[350294794,1737773457615,-150.0,0.00020241,4]
[350294795,1737773457625,-416.7771028,0.00020245,2]
[350294796,1737773457634,-150.0,0.00020309,4]
[350294797,1737773457644,-366.42606913,0.0002032,2]
[350294798,1737773457654,-500.0,0.00020356,2]
[350294799,1737773457663,-150.0,0.00020377,4]
[350294800,1737773457673,-150.0,0.00020377,4]
[350294801,1737773457682,-150.0,0.00020377,4]
[350294802,1737773457691,-150.0,0.00020444,4]
[350294803,1737773457701,-416.7771028,0.00020452,2]
[350294804,1737773457710,-2110.0,0.00020505,2]
[350294805,1737773457719,-150.0,0.00020512,4]
[350294806,1737773457729,-150.0,0.00020512,4]
[350294807,1737773457738,-177.55,0.00020548,2]
[350294808,1737773457749,-150.0,0.0002058,4]
[350294809,1737773457758,-150.0,0.00020647,4]
[350294810,1737773457768,-150.0,0.00020647,4]
[350294811,1737773457778,-150.0,0.00020647,4]
[350294812,1737773457787,-416.7771028,0.00020659,2]
[350294813,1737773457797,-244.8156684,0.00020664,2]
[350294814,1737773457807,-24975.95891181,0.00020664,2]
[350294815,1737773457816,-1000.0,0.0002069,2]
[350294816,1737773457826,-150.0,0.00020715,4]
[350294817,1737773457836,-2027.506,0.00020746,2]
[350294818,1737773457845,-1270.0,0.00020746,2]
[350294819,1737773457855,-150.43,0.00020746,2]
[350294820,1737773457864,-698.355,0.00020746,2]
[350294821,1737773457872,-567.0,0.00020746,2]
[350294822,1737773457882,-1032.554,0.00020746,2]
[350294823,1737773457891,-911.946,0.00020746,2]
[350294824,1737773457900,-1265.343,0.00020746,2]
[350294825,1737773457910,-861.0,0.00020746,2]
[350294826,1737773457920,-2949.0,0.00020746,2]
[350294827,1737773457929,-539.936,0.00020746,2]
[350294828,1737773458031,-4002.832,0.00020746,2]
[350294829,1737773458054,-150.0,0.00020783,4]